lending/lending_fUSD_20250418
["ID","MTS","AMOUNT","RATE_DAILY","PERIOD"]
[358339866,1744955445208,-500.0,0.0011178,120]
[358339867,1744955445218,-500.0,0.0011178,120]
[358339868,1744955445227,-588.4720625,0.0011178,120]
[358339869,1744955445236,-500.0,0.0011178,120]
[358339870,1744955445245,-500.0,0.0011178,120]
[358339871,1744955445255,-302.75120191,0.0011178,120]
[358339872,1744955445266,-197.24879809,0.0011178,120]
[358339873,1744955445276,-4080.45,0.0011178,7]
[358339874,1744955445285,-454.44345978,0.0011178,120]
[358339875,1744955445294,-152.35498529,0.0011178,120]
[358339876,1744955445303,-1016.01,0.0011178,120]
[358339877,1744955445313,-500.0,0.0011178,120]
[358339878,1744955445322,-500.0,0.0011178,120]
[358339879,1744955445331,-500.0,0.0011178,120]
[358339880,1744955445340,-230.72168228,0.0011178,120]
[358339881,1744955445350,-532.06586287,0.0011178,120]
[358339882,1744955445359,-500.0,0.0011178,30]
[358339883,1744955445368,-500.0,0.0011178,120]
[358339884,1744955445377,-532.67985503,0.0011178,120]
[358339885,1744955445388,-500.0,0.0011178,120]
[358339886,1744955445398,-500.0,0.0011178,120]
[358339887,1744955445407,-548.8227516,0.0011178,120]
[358339888,1744955445416,-635.55,0.0011178,120]
[358339889,1744955445425,-500.0,0.0011178,120]
[358339890,1744955445434,-500.0,0.0011178,120]
[358339891,1744955445443,-500.0,0.0011178,120]
[358339892,1744955445453,-528.70635705,0.0011178,120]
[358339893,1744955445462,-424.79485811,0.0011178,120]
[358339894,1744955445471,-500.0,0.0011178,120]
[358339895,1744955445480,-632.44572733,0.0011178,120]
[358339896,1744955445489,-580.05358435,0.0011178,120]
[358339897,1744955445498,-500.0,0.0011178,120]
[358339898,1744955445507,-500.0,0.0011178,120]
[358339899,1744955445517,-500.0,0.0011178,120]
[358339900,1744955445526,-500.0,0.0011178,120]
[358339901,1744955445535,-500.0,0.0011178,120]
[358339902,1744955445544,-620.08308481,0.0011178,120]
[358339903,1744955445553,-500.0,0.0011178,120]
[358339904,1744955445563,-467.85046111,0.0011178,120]
[358339905,1744955445572,-500.0,0.0011178,120]
[358339906,1744955445581,-500.0,0.0011178,120]
[358339907,1744955445590,-500.0,0.0011178,120]
[358339908,1744955445599,-500.0,0.0011178,120]
[358339909,1744955445609,-560.50362277,0.0011178,8]
[358339910,1744955445618,-500.0,0.0011178,120]
[358339911,1744955445627,-500.0,0.0011178,120]
[358339912,1744955445636,-500.0,0.0011178,120]
[358339913,1744955445645,-500.0,0.0011178,120]
[358339914,1744955445654,-500.0,0.0011178,120]
[358339915,1744955445663,-514.93066914,0.0011178,120]
[358339916,1744955445672,-500.0,0.0011178,120]
[358339917,1744955445681,-535.86727417,0.0011178,120]
[358339918,1744955445690,-1247.51,0.0011178,120]
[358339919,1744955445699,-500.0,0.0011178,120]
[358339920,1744955445707,-479.37499888,0.0011178,120]
[358339921,1744955445716,-500.0,0.0011178,120]
[358339922,1744955445725,-565.45275401,0.0011178,120]
[358339923,1744955445735,-500.0,0.0011178,120]
[358339924,1744955445744,-4300.91,0.0011178,120]
[358339925,1744955445754,-500.0,0.0011178,30]
[358339926,1744955445763,-517.83015412,0.0011178,2]
[358339927,1744955445773,-460.31263107,0.0011178,120]
[358339928,1744955445783,-500.0,0.0011178,120]
[358339929,1744955445792,-606.53863497,0.0011178,120]
[358339930,1744955445803,-500.0,0.0011178,120]
[358339931,1744955445814,-500.0,0.0011178,120]
[358339932,1744955445824,-505.68131282,0.0011178,120]
[358339933,1744955445834,-500.0,0.0011178,120]
[358339935,1744955445843,-520.09598827,0.0011178,120]
[358339936,1744955445854,-436.78549165,0.0011178,120]
[358339937,1744955445864,-500.0,0.0011178,120]
[358339938,1744955445873,-500.0,0.0011178,120]
[358339939,1744955445884,-500.0,0.0011178,120]
[358339940,1744955445895,-507.03726267,0.0011178,120]
[358339942,1744955445904,-520.6854784,0.0011178,120]
[358339943,1744955445914,-425.2380925,0.0011178,120]
[358339945,1744955445923,-542.45952704,0.0011178,120]
[358339947,1744955445932,-177.52919884,0.0011178,120]
[358339949,1744955445942,-542.08292134,0.0011178,120]
[358339951,1744955445951,-500.0,0.0011178,120]
[358339953,1744955445961,-500.0,0.0011178,2]
[358339956,1744955445971,-500.0,0.0011178,120]
[358339957,1744955445980,-500.0,0.0011178,120]
[358339958,1744955445990,-500.0,0.0011178,118]
[358339959,1744955445999,-500.0,0.0011178,2]
[358339960,1744955446009,-500.0,0.0011178,120]
[358339961,1744955446018,-500.0,0.0011178,120]
[358339962,1744955446027,-634.11121711,0.0011178,120]
[358339963,1744955446036,-500.0,0.0011178,2]
[358339964,1744955446046,-500.0,0.0011178,120]
[358339965,1744955446055,-558.70703446,0.0011178,120]
[358339966,1744955446064,-179.94433379,0.0011178,120]
[358339967,1744955446074,-500.0,0.0011178,120]
[358339968,1744955446084,-500.0,0.0011178,120]
[358339969,1744955446093,-500.0,0.0011178,2]
[358339970,1744955446102,-500.0,0.0011178,120]
[358339971,1744955446112,-500.0,0.0011178,120]
[358339973,1744955446121,-500.0,0.0011178,120]
[358339974,1744955446130,-800.0,0.001119,40]
[358339975,1744955446140,-150.0,0.00111973,30]
[358339976,1744955446150,-214.43186497,0.00111973,60]
[358339977,1744955446159,-501.87414195,0.00111973,5]
[358339978,1744955446168,-162.19684763,0.00111973,60]
[358339979,1744955446177,-500.0,0.00111973,60]
[358339980,1744955446186,-169.18,0.0011202,30]
[358339981,1744955446195,-600.0,0.00112246,120]
[358339982,1744955446204,-258.62,0.0011281,120]
[358339983,1744955446213,-564.84,0.00112821,2]
[358339984,1744955446222,-500.0,0.00113,14]
[358339985,1744955446231,-500.0,0.00113111,60]
[358339986,1744955446240,-300.0,0.0011319,90]
[358339987,1744955446250,-300.0,0.0011319,90]
[358339988,1744955446259,-300.0,0.0011319,90]
[358339989,1744955446268,-500.0,0.0011319,120]
[358339990,1744955446277,-500.0,0.00113191,120]
[358339991,1744955446286,-363.66963034,0.00113191,120]
[358339992,1744955446295,-500.0,0.00113191,120]
[358339993,1744955446305,-500.0,0.00113191,120]
[358339994,1744955446315,-500.0,0.00113191,120]
[358339995,1744955446324,-500.0,0.00113191,120]
[358339996,1744955446333,-500.0,0.00113191,120]
[358339997,1744955446343,-500.0,0.00113191,120]
[358339998,1744955446352,-500.0,0.00113191,120]
[358339999,1744955446361,-500.0,0.00113191,120]
[358340000,1744955446370,-500.0,0.00113191,120]
[358340002,1744955446379,-500.0,0.00113191,30]
[358340004,1744955446388,-500.0,0.00113191,120]
[358340005,1744955446398,-500.0,0.00113191,120]
[358340006,1744955446407,-500.0,0.00113191,120]
[358340007,1744955446415,-500.0,0.00113191,120]
[358340008,1744955446424,-500.0,0.00113191,120]
[358340009,1744955446434,-539.4909216,0.00113191,120]
[358340011,1744955446443,-500.0,0.00113191,120]
[358340012,1744955446452,-500.0,0.00113191,120]
[358340013,1744955446461,-500.0,0.00113191,120]
[358340014,1744955446470,-555.90885628,0.00113191,120]
[358340015,1744955446479,-567.52056887,0.00113191,120]
[358340016,1744955446488,-568.61750892,0.00113191,120]
[358340017,1744955446498,-500.0,0.00113191,120]
[358340018,1744955446507,-562.40399162,0.00113191,120]
[358340019,1744955446515,-1583.91,0.00113191,120]
[358340020,1744955446526,-540.05312159,0.00113191,120]
[358340021,1744955446536,-533.55411585,0.00113191,120]
[358340022,1744955446546,-568.60403616,0.00113191,120]
[358340023,1744955446555,-500.0,0.00113191,120]
[358340024,1744955446564,-500.0,0.00113191,120]
[358340025,1744955446573,-500.0,0.00113191,120]
[358340026,1744955446584,-500.0,0.00113191,120]
[358340028,1744955446593,-500.0,0.00113191,120]
[358340029,1744955446603,-500.0,0.00113191,120]
[358340030,1744955446611,-606.54827966,0.00113191,120]
[358340031,1744955446621,-500.0,0.00113191,120]
[358340032,1744955446630,-560.28590142,0.00113191,120]
[358340033,1744955446639,-539.79623089,0.00113191,120]
[358340034,1744955446648,-500.0,0.00113191,120]
[358340035,1744955446657,-500.0,0.00113191,120]
[358340036,1744955446666,-516.63764517,0.00113191,120]
[358340037,1744955446675,-500.0,0.00113191,120]
[358340038,1744955446684,-500.0,0.00113191,120]
[358340039,1744955446693,-500.0,0.00113191,120]
[358340040,1744955446702,-523.26872075,0.00113191,120]
[358340041,1744955446711,-500.0,0.00113191,120]
[358340042,1744955446721,-296.3438191,0.00113191,120]
[358340043,1744955446730,-500.0,0.00113191,120]
[358340044,1744955446739,-500.0,0.00113191,120]
[358340045,1744955446748,-500.0,0.00113191,120]
[358340046,1744955446757,-500.0,0.00113191,120]
[358340047,1744955446767,-544.99943757,0.00113191,120]
[358340048,1744955446776,-570.55693434,0.00113191,120]
[358340049,1744955446786,-500.0,0.00113191,120]
[358340050,1744955446795,-500.0,0.00113191,120]
[358340051,1744955446806,-500.0,0.00113191,120]
[358340052,1744955446817,-500.0,0.00113191,120]
[358340053,1744955446827,-500.0,0.00113191,120]
[358340054,1744955446836,-500.0,0.00113191,120]
[358340055,1744955446847,-500.0,0.00113871,120]
[358340056,1744955446858,-300.0,0.00113871,90]
[358340057,1744955446869,-500.0,0.00113871,120]
[358340058,1744955446881,-88888.0,0.00113872,120]
[358340059,1744955446892,-7776.43369299,0.0011389,15]
[358340060,1744955446901,-306.44,0.00113943,120]
[358340061,1744955446911,-500.0,0.00113971,120]
[358340062,1744955446919,-500.0,0.00113971,120]
[358340063,1744955446929,-500.0,0.00113971,2]
[358340064,1744955446938,-500.0,0.00113971,120]
[358340065,1744955446947,-500.0,0.00113972,2]
[358340066,1744955446956,-500.0,0.00113972,120]
[358340067,1744955446965,-185.02362982,0.00113972,120]
[358340068,1744955446974,-534.49894533,0.00113972,120]
[358340069,1744955446984,-500.0,0.00113972,120]
[358340070,1744955446993,-295.74498464,0.00113972,120]
[358340071,1744955447002,-530.38363298,0.00113972,120]
[358340072,1744955447011,-313.14395657,0.00113972,120]
[358340073,1744955447020,-500.0,0.00113972,120]
[358340074,1744955447030,-500.0,0.00113972,120]
[358340075,1744955447039,-500.0,0.00113972,120]
[358340076,1744955447048,-500.0,0.00113972,120]
[358340077,1744955447058,-500.0,0.00113972,120]
[358340078,1744955447067,-598.01030272,0.00113972,120]
[358340079,1744955447076,-500.0,0.00113972,120]
[358340080,1744955447085,-500.0,0.00113972,120]
[358340081,1744955447095,-500.0,0.00113972,120]
[358340082,1744955447104,-1250.02,0.00113972,120]
[358340083,1744955447112,-500.0,0.00113972,120]
[358340084,1744955447120,-500.0,0.00113972,120]
[358340085,1744955447129,-500.0,0.00113972,120]
[358340086,1744955447139,-556.97514264,0.00113972,120]
[358340087,1744955447148,-500.0,0.00113972,120]
[358340088,1744955447158,-500.0,0.00113972,120]
[358340089,1744955447167,-500.0,0.00113972,120]
[358340090,1744955447176,-612.45,0.00113972,120]
[358340091,1744955447185,-367.0862615,0.00113972,120]
[358340092,1744955447195,-342.54485702,0.00113972,120]
[358340093,1744955447204,-500.0,0.00113972,120]
[358340094,1744955447213,-500.0,0.00113972,120]
[358340095,1744955447223,-437.07730486,0.00113972,120]
[358340096,1744955447232,-535.01629448,0.00113972,120]
[358340097,1744955447242,-500.0,0.00113972,14]
[358340098,1744955447251,-621.03413735,0.00113972,120]
[358340099,1744955447260,-314.90052914,0.00113972,120]
[358340100,1744955447270,-289.10028084,0.00113972,120]
[358340101,1744955447279,-500.0,0.00113972,120]
[358340102,1744955447289,-500.0,0.00113972,120]
[358340103,1744955447298,-500.0,0.00113972,120]
[358340104,1744955447307,-500.0,0.00113972,120]
[358340105,1744955447317,-500.0,0.00113972,120]
[358340106,1744955447326,-500.0,0.00113972,120]
[358340107,1744955447336,-5573.03,0.00113972,120]
[358340108,1744955447345,-500.0,0.00113972,120]
[358340109,1744955447355,-500.0,0.00113972,120]
[358340110,1744955447364,-500.0,0.00113972,120]
[358340111,1744955447373,-521.71875914,0.00113972,120]
[358340112,1744955447383,-500.0,0.00113972,120]
[358340113,1744955447393,-177.10203477,0.00113972,120]
[358340114,1744955447402,-541.74343128,0.00113972,120]
[358340115,1744955447411,-579.64939922,0.00113972,120]
[358340116,1744955447420,-500.0,0.00113972,120]
[358340117,1744955447429,-194.86866157,0.00113972,120]
[358340118,1744955447439,-655.13,0.00113972,120]
[358340119,1744955447448,-500.0,0.00113972,120]
[358340120,1744955447457,-500.0,0.00113972,120]
[358340121,1744955447466,-500.0,0.00113972,120]
[358340122,1744955447475,-500.0,0.00113972,120]
[358340123,1744955447484,-500.0,0.00113972,120]
[358340124,1744955447494,-500.0,0.00113972,120]
[358340125,1744955447503,-500.0,0.00113972,120]
[358340126,1744955447512,-500.0,0.00113972,120]
[358340127,1744955447520,-500.0,0.00113972,120]
[358340128,1744955447530,-500.0,0.00113972,120]
[358340129,1744955447539,-500.0,0.00113972,120]
[358340130,1744955447548,-500.0,0.00113972,120]
[358340131,1744955447557,-500.0,0.00113972,120]
[358340132,1744955447566,-500.0,0.00113972,120]
[358340133,1744955447576,-422.61256645,0.00113972,120]
[358340134,1744955447585,-500.0,0.00113972,120]
[358340135,1744955447595,-500.0,0.00113972,120]
[358340136,1744955447604,-500.0,0.00113972,120]
[358340137,1744955447739,-310.46647105,0.00113972,120]
[358340138,1744955447749,-527.1584027,0.00113972,120]
[358340139,1744955447759,-500.0,0.00113972,120]
[358340140,1744955447768,-500.0,0.00113972,120]
[358340141,1744955447778,-551.27909135,0.00113972,120]
[358340142,1744955447787,-500.0,0.00113972,120]
[358340143,1744955447797,-300.0,0.00113972,120]
[358340144,1744955447810,-513.91266887,0.00113972,120]
[358340145,1744955447820,-500.0,0.00113972,120]
[358340146,1744955447829,-500.0,0.00113972,120]
[358340147,1744955447839,-500.0,0.00113972,120]
[358340148,1744955447850,-543.97,0.00113972,120]
[358340149,1744955447859,-500.0,0.00113972,120]
[358340150,1744955447868,-500.0,0.00113972,120]
[358340151,1744955447877,-500.0,0.00113972,120]
[358340152,1744955447889,-500.0,0.00113972,120]
[358340153,1744955447899,-537.11396521,0.00113972,120]
[358340154,1744955447908,-527.71527351,0.00113972,120]
[358340155,1744955447919,-4080.45,0.00113972,7]
[358340156,1744955447928,-1016.01,0.00113972,120]
[358340157,1744955447938,-571.45090325,0.00113972,120]
[358340158,1744955447948,-633.1579226,0.00113972,120]
[358340159,1744955447957,-408.6734836,0.00113972,120]
[358340160,1744955447967,-500.0,0.00113972,30]
[358340161,1744955447976,-500.0,0.00113972,120]
[358340162,1744955447986,-312.59309528,0.00113972,120]
[358340163,1744955447995,-500.0,0.00113972,120]
[358340164,1744955448005,-635.55,0.00113972,120]
[358340165,1744955448015,-500.0,0.00113972,120]
[358340166,1744955448024,-500.0,0.00113972,120]
[358340167,1744955448034,-500.0,0.00113972,120]
[358340168,1744955448043,-500.0,0.00113972,120]
[358340169,1744955448053,-500.0,0.00113972,120]
[358340170,1744955448062,-500.0,0.00113972,120]
[358340171,1744955448072,-342.14103576,0.00113972,120]
[358340172,1744955448081,-180.92208272,0.00113972,120]
[358340173,1744955448091,-500.0,0.00113972,120]
[358340174,1744955448101,-500.0,0.00113972,120]
[358340175,1744955448112,-531.32179153,0.00113972,120]
[358340176,1744955448121,-500.0,0.00113972,120]
[358340177,1744955448131,-184.4531016,0.00113972,120]
[358340178,1744955448141,-500.0,0.00113972,120]
[358340179,1744955448151,-202.18566588,0.00113972,120]
[358340180,1744955448160,-500.0,0.00113972,120]
[358340181,1744955448170,-500.0,0.00113972,120]
[358340182,1744955448179,-530.10361413,0.00113972,120]
[358340183,1744955448189,-500.0,0.00113972,120]
[358340184,1744955448198,-1247.51,0.00113972,120]
[358340185,1744955448208,-326.76111498,0.00113972,120]
[358340186,1744955448218,-500.0,0.00113972,120]
[358340187,1744955448228,-500.0,0.00113972,120]
[358340188,1744955448238,-4300.91,0.00113972,120]
[358340189,1744955448247,-581.1188798,0.00113972,30]
[358340190,1744955448257,-491.11679122,0.00113972,120]
[358340191,1744955448267,-500.0,0.00113972,120]
[358340192,1744955448276,-521.59636648,0.00113972,120]
[358340193,1744955448286,-500.0,0.00113972,120]
[358340194,1744955448295,-544.44006367,0.00113972,120]
[358340195,1744955448304,-500.0,0.00113972,120]
[358340196,1744955448314,-500.0,0.00113972,120]
[358340197,1744955448324,-434.89391072,0.00113972,120]
[358340198,1744955448334,-501.24928205,0.00113972,2]
[358340199,1744955448344,-500.0,0.00113972,120]
[358340200,1744955448354,-500.0,0.00113972,120]
[358340201,1744955448363,-590.67694088,0.00113972,118]
[358340202,1744955448373,-510.47347001,0.00113972,2]
[358340203,1744955448382,-500.0,0.00113972,120]
[358340204,1744955448392,-500.0,0.00113972,120]
[358340205,1744955448402,-500.0,0.00113972,2]
[358340206,1744955448411,-500.0,0.00113972,120]
[358340207,1744955448421,-500.0,0.00113972,120]
[358340208,1744955448430,-552.76416967,0.00113972,120]
[358340209,1744955448440,-500.80999034,0.00113972,2]
[358340210,1744955448450,-259.82867277,0.00113972,120]
[358340211,1744955448459,-293.36174509,0.00113972,120]
[358340212,1744955448468,-500.0,0.00113972,120]
[358340213,1744955448477,-1678.58699197,0.00113979,15]
[358340214,1744955448487,-160.0,0.00114712,30]
[358340215,1744955448496,-500.0,0.00114867,120]
[358340216,1744955448506,-500.0,0.00115068,120]
[358340217,1744955448516,-509.99952835,0.00115068,120]
[358340218,1744955448526,-564.84,0.00115085,2]
[358340219,1744955448535,-166.76,0.00115349,2]
[358340220,1744955448544,-500.0,0.00115369,120]
[358340221,1744955448553,-487.06101953,0.00115369,120]
[358340222,1744955448563,-500.0,0.00115382,120]
[358340223,1744955448572,-500.0,0.00115382,120]
[358340224,1744955448582,-551.62284465,0.00115383,120]
[358340225,1744955448591,-296.81961688,0.00115383,120]
[358340226,1744955448600,-500.0,0.00115383,120]
[358340227,1744955448610,-500.0,0.00115383,120]
[358340228,1744955448619,-500.0,0.00115383,120]
[358340229,1744955448628,-500.0,0.00115383,120]
[358340230,1744955448638,-560.78798933,0.00115383,120]
[358340231,1744955448648,-538.61081319,0.00115383,120]
[358340232,1744955448657,-548.86617431,0.00115383,120]
[358340233,1744955448667,-567.64730335,0.00115383,120]
[358340234,1744955448676,-531.51165117,0.00115383,30]
[358340235,1744955448686,-500.0,0.00115383,120]
[358340236,1744955448695,-500.0,0.00115383,120]
[358340237,1744955448705,-525.34444548,0.00115383,120]
[358340238,1744955448714,-535.06926459,0.00115383,120]
[358340239,1744955448724,-544.34048902,0.00115383,120]
[358340240,1744955448733,-500.0,0.00115383,120]
[358340241,1744955448743,-500.0,0.00115383,120]
[358340242,1744955448752,-500.0,0.00115383,120]
[358340243,1744955448762,-1583.91,0.00115383,120]
[358340244,1744955448771,-500.0,0.00115383,120]
[358340245,1744955448781,-500.0,0.00115383,120]
[358340246,1744955448791,-505.32469311,0.00115383,120]
[358340247,1744955448801,-500.0,0.00115383,120]
[358340248,1744955448813,-500.0,0.00115383,120]
[358340249,1744955448823,-556.72271972,0.00115383,120]
[358340250,1744955448834,-500.0,0.00115383,120]
[358340251,1744955448844,-543.08167753,0.00115383,120]
[358340252,1744955448854,-500.0,0.00115383,120]
[358340253,1744955448864,-500.0,0.00115383,120]
[358340254,1744955448873,-523.83319445,0.00115383,120]
[358340255,1744955448887,-541.41638359,0.00115383,120]
[358340256,1744955448898,-545.25348327,0.00115383,120]
[358340257,1744955448907,-538.79806615,0.00115383,120]
[358340258,1744955448917,-500.0,0.00115383,120]
[358340259,1744955448927,-544.66292713,0.00115383,120]
[358340260,1744955448937,-484.24933515,0.00115383,120]
[358340261,1744955448947,-417.28225794,0.00115383,120]
[358340262,1744955448957,-367.81325666,0.00115383,120]
[358340263,1744955448967,-500.0,0.00115383,120]
[358340264,1744955448976,-500.0,0.00115383,120]
[358340265,1744955448986,-500.0,0.00115383,120]
[358340266,1744955448995,-500.0,0.00115383,120]
[358340267,1744955449005,-818.36,0.00115989,120]
[358340268,1744955449015,-818.36,0.00115999,120]
[358340269,1744955449025,-152.674263,0.00116,120]
[358340270,1744955449034,-154.537136,0.00116,120]
[358340271,1744955449044,-153.499435,0.00116,120]
[358340272,1744955449054,-151.0,0.00116,120]
[358340273,1744955449064,-418.8126353,0.00116163,120]
[358340274,1744955449072,-500.0,0.00116164,2]
[358340275,1744955449082,-500.0,0.00116164,120]
[358340276,1744955449092,-500.0,0.00116164,120]
[358340277,1744955449101,-500.0,0.00116164,120]
[358340278,1744955449111,-348.99,0.00116164,120]
[358340279,1744955449120,-500.0,0.00116164,120]
[358340280,1744955449130,-530.10733404,0.00116164,120]
[358340281,1744955449140,-172.29160326,0.00116164,120]
[358340282,1744955449149,-500.0,0.00116164,120]
[358340283,1744955449159,-262.57768449,0.00116164,120]
[358340284,1744955449168,-500.0,0.00116164,120]
[358340285,1744955449177,-1250.02,0.00116164,120]
[358340286,1744955449188,-500.0,0.00116164,120]
[358340287,1744955449197,-500.0,0.00116164,120]
[358340288,1744955449206,-500.0,0.00116164,120]
[358340289,1744955449216,-500.0,0.00116164,120]
[358340290,1744955449225,-500.0,0.00116164,120]
[358340291,1744955449235,-500.0,0.00116164,120]
[358340292,1744955449244,-612.45,0.00116164,120]
[358340293,1744955449254,-223.38016942,0.00116164,120]
[358340294,1744955449263,-500.0,0.00116164,120]
[358340295,1744955449273,-500.0,0.00116164,14]
[358340296,1744955449282,-500.0,0.00116164,120]
[358340297,1744955449292,-430.63308182,0.00116164,120]
[358340298,1744955449302,-500.0,0.00116164,120]
[358340299,1744955449311,-228.89424049,0.00116164,120]
[358340300,1744955449320,-346.34772989,0.00116164,120]
[358340301,1744955449330,-500.0,0.00116164,120]
[358340302,1744955449339,-5573.03,0.00116164,120]
[358340303,1744955449348,-500.0,0.00116164,120]
[358340304,1744955449358,-330.86801094,0.00116164,120]
[358340305,1744955449367,-500.0,0.00116164,120]
[358340306,1744955449376,-500.0,0.00116164,120]
[358340307,1744955449386,-500.0,0.00116164,120]
[358340308,1744955449396,-655.13,0.00116164,120]
[358340309,1744955449405,-500.0,0.00116164,120]
[358340310,1744955449415,-500.0,0.00116164,120]
[358340311,1744955449424,-500.0,0.00116164,120]
[358340312,1744955449434,-500.0,0.00116164,120]
[358340313,1744955449443,-500.0,0.00116164,120]
[358340314,1744955449453,-500.0,0.00116164,120]
[358340315,1744955449462,-500.0,0.00116164,120]
[358340316,1744955449471,-500.0,0.00116164,120]
[358340317,1744955449481,-500.0,0.00116164,120]
[358340318,1744955449490,-647.67421055,0.00116164,120]
[358340319,1744955449498,-500.0,0.00116164,120]
[358340320,1744955449507,-500.0,0.00116164,120]
[358340321,1744955449516,-500.0,0.00116164,120]
[358340322,1744955449526,-500.0,0.00116164,120]
[358340323,1744955449535,-500.0,0.00116164,120]
[358340324,1744955449545,-500.0,0.00116164,120]
[358340325,1744955449555,-500.0,0.00116164,120]
[358340326,1744955449564,-500.0,0.00116164,120]
[358340327,1744955449574,-500.0,0.00116164,120]
[358340328,1744955449583,-500.0,0.00116164,120]
[358340329,1744955449592,-195.93254203,0.00116164,120]
[358340330,1744955449601,-500.0,0.00116164,120]
[358340331,1744955449611,-500.0,0.00116164,120]
[358340332,1744955449620,-500.0,0.00116164,120]
[358340333,1744955449630,-543.97,0.00116164,120]
[358340334,1744955449639,-500.0,0.00116164,120]
[358340335,1744955449651,-500.0,0.00116164,120]
[358340336,1744955449660,-500.0,0.00116164,120]
[358340337,1744955449670,-500.0,0.00116164,120]
[358340338,1744955449680,-4080.45,0.00116164,7]
[358340339,1744955449689,-1016.01,0.00116164,120]
[358340340,1744955449699,-500.0,0.00116164,30]
[358340341,1744955449708,-500.0,0.00116164,120]
[358340342,1744955449717,-500.0,0.00116164,120]
[358340343,1744955449726,-635.55,0.00116164,120]
[358340344,1744955449736,-343.75931628,0.00116164,120]
[358340345,1744955449745,-500.0,0.00116164,120]
[358340346,1744955449755,-500.0,0.00116164,120]
[358340347,1744955449764,-500.0,0.00116164,120]
[358340348,1744955449774,-500.0,0.00116164,120]
[358340349,1744955449784,-500.0,0.00116164,120]
[358340350,1744955449793,-500.0,0.00116164,120]
[358340351,1744955449803,-500.0,0.00116164,120]
[358340352,1744955449817,-592.99265994,0.00116164,120]
[358340353,1744955449826,-500.0,0.00116164,120]
[358340354,1744955449835,-500.0,0.00116164,120]
[358340355,1744955449845,-636.76967883,0.00116164,120]
[358340356,1744955449857,-185.8220312,0.00116164,120]
[358340357,1744955449867,-1247.51,0.00116164,120]
[358340358,1744955449876,-500.0,0.00116164,120]
[358340359,1744955449888,-500.0,0.00116164,120]
[358340360,1744955449898,-4300.91,0.00116164,120]
[358340361,1744955449907,-500.0,0.00116164,120]
[358340362,1744955449917,-500.0,0.00116164,120]
[358340363,1744955449926,-169.32600911,0.00116164,120]
[358340364,1744955449935,-500.0,0.00116164,120]
[358340365,1744955449945,-571.83455369,0.00116164,120]
[358340366,1744955449955,-500.0,0.00116164,120]
[358340367,1744955449964,-500.0,0.00116164,120]
[358340368,1744955449974,-500.0,0.00116164,120]
[358340369,1744955449983,-417.69791779,0.00116164,2]
[358340370,1744955449993,-500.0,0.00116164,120]
[358340371,1744955450003,-500.0,0.00116164,120]
[358340372,1744955450013,-500.0,0.00116164,120]
[358340373,1744955450022,-500.0,0.00116452,60]
[358340374,1744955450031,-1041.19385,0.00117,120]
[358340375,1744955450041,-564.84,0.00117349,2]
[358340376,1744955450052,-818.36,0.00117399,120]
[358340377,1744955450061,-818.36,0.00117399,120]
[358340378,1744955450070,-818.36,0.00117399,120]
[358340379,1744955450079,-818.36,0.00117399,120]